lending/lending_fUSD_20250808
["ID","MTS","AMOUNT","RATE_DAILY","PERIOD"]
[377993377,1754653844298,-500.0,0.00018973,2]
[377993378,1754653844307,-500.0,0.00018973,2]
[377993379,1754653844317,-500.0,0.00018973,2]
[377993380,1754653844326,-500.0,0.00018973,2]
[377993381,1754653844335,-501.03,0.0001898,2]
[377993382,1754653844344,-150.0,0.00018986,2]
[377993383,1754653844353,-150.0,0.00018986,2]
[377993384,1754653844363,-150.0,0.00018986,2]
[377993385,1754653844372,-150.0,0.00018986,2]
[377993386,1754653844381,-249.64706428,0.00018986,2]
[377993387,1754653844390,-150.0,0.00018986,2]
[377993388,1754653844400,-211.62674257,0.00018986,2]
[377993389,1754653844409,-842.44706758,0.00018986,2]
[377993390,1754653844419,-457.64618948,0.00018986,2]
[377993391,1754653844428,-221.2651963,0.0001899,2]
[377993392,1754653844437,-660.137,0.00018999,2]
[377993393,1754653844446,-32279.80513667,0.00019,2]
[377993394,1754653844457,-2324625.06712321,0.00019,2]
[377993395,1754653844466,-450.17164632,0.00019,2]
[377993396,1754653844475,-871972.23265909,0.00019,2]
[377993399,1754653844966,-285.2172231,0.00019,2]
[377993402,1754653845454,-400.0,0.00018762,2]
[377993403,1754653845463,-540.59,0.00018763,2]
[377993404,1754653845472,-346390.87944452,0.00019,2]
[377993405,1754653845506,-1169.8,0.00019,2]
[377993406,1754653846531,-441.36,0.00018762,2]
[377993407,1754653846541,-684.83,0.00018763,2]
[377993408,1754653846550,-1053.034483,0.000189,2]
[377993409,1754653846560,-2485.96390673,0.00019,2]
[377993410,1754653846571,-13704.9883472,0.00019,2]
[377993411,1754653846591,-5015.26429165,0.00019,2]
[377993416,1754653846867,-190.65028586,0.00018761,2]
[377993417,1754653966170,506.00003,0.00017131,2]
[377993418,1754653994687,232.32,0.00030137,120]
[377993419,1754653997742,340.37,0.00015068,2]
[377993420,1754653998075,340.37,0.00016676,2]
[377993422,1754654005540,232.32,0.00030137,120]
[377993430,1754654614238,308.712627,0.00018007,2]
[377993431,1754654615122,348.5,0.00017944,2]
[377993432,1754654670704,500.0,0.00017944,2]
[377993433,1754654707147,151.15903032,0.00017605,2]
[377993434,1754654707265,150.0,0.00017605,2]
[377993435,1754654707305,150.0,0.0001785,2]
[377993436,1754654719395,150.0,0.00017605,2]
[377993437,1754654720477,240.02,0.00013699,2]
[377993438,1754654732167,1000.0,0.00017847,2]
[377993489,1754654792481,1460.93,0.00017827,2]
[377993490,1754654818932,2302.97,0.00017807,2]
[377993555,1754654876249,1527.67838428,0.00018007,2]
[377993556,1754654876269,1560.32161572,0.00018007,2]
[377993557,1754654892784,13439.67838428,0.00017708,2]
[377993558,1754654892805,10460.32161572,0.00017708,2]
[377993559,1754654895262,150.0,0.00017619,20]
[377993560,1754654906094,3381.669,0.00030136,120]
[377993562,1754654936766,469.26,0.00015068,2]
[377993563,1754654936976,469.26,0.00016648,2]
[377993564,1754654976294,690.44,0.00017682,2]
[377993565,1754654977610,150.0,0.00017682,2]
[377993566,1754654999124,337.08,0.00017682,2]
[377993567,1754654999522,337.08,0.00017692,2]
[377993568,1754654999556,337.08,0.00017701,2]
[377993569,1754654999718,337.08,0.0001771,2]
[377993570,1754654999932,337.08,0.0001772,2]
[377993571,1754655000141,337.08,0.00017729,2]
[377993572,1754655000344,337.08,0.00017738,2]
[377993573,1754655000612,251.15838428,0.00017748,2]
[377993574,1754655000633,85.92161572,0.00017748,2]
[377993575,1754655001001,337.08,0.00017757,2]
[377993576,1754655001538,337.08,0.00017766,2]
[377993577,1754655001757,337.08,0.00017776,2]
[377993578,1754655001968,337.08,0.00017785,2]
[377993579,1754655002175,337.08,0.00017794,2]
[377993580,1754655002384,337.08,0.00017804,2]
[377993581,1754655002634,337.08,0.00017813,2]
[377993582,1754655002857,337.08,0.00017822,2]
[377993583,1754655003074,337.08,0.00017831,2]
[377993584,1754655003313,337.08,0.00017841,2]
[377993585,1754655003770,337.08,0.0001785,2]
[377993586,1754655003986,337.08,0.00017859,2]
[377993587,1754655031432,-178.0,0.00018094,2]
[377993588,1754655031444,-300.0,0.00018094,2]
[377993589,1754655031457,-1000.0,0.00018094,4]
[377993590,1754655031469,-300.0,0.00018094,2]
[377993591,1754655031481,-150.0,0.00018095,2]
[377993592,1754655031494,-200.0,0.00018098,2]
[377993593,1754655031506,-150.0,0.00018146,2]
[377993594,1754655031518,-666.0,0.00018185,3]
[377993595,1754655031532,-469.26,0.00018228,2]
[377993596,1754655031547,-182.94819628,0.00018239,2]
[377993597,1754655031563,-181.85,0.0001828,2]
[377993598,1754655031575,-150.0,0.00018339,2]
[377993599,1754655031588,-638.26498512,0.00018525,2]
[377993600,1754655031600,-150.0,0.00018584,2]
[377993601,1754655031611,-1200.0,0.00018598,2]
[377993602,1754655031623,-336.0,0.00018599,2]
[377993603,1754655031635,-300.0,0.00018599,2]
[377993604,1754655031648,-300.0,0.00018599,2]
[377993605,1754655031660,-300.0,0.00018599,2]
[377993606,1754655031673,-1591.82,0.000186,2]
[377993607,1754655031685,-467.56,0.000186,2]
[377993608,1754655031697,-714.34,0.000186,2]
[377993609,1754655031709,-537.83,0.000186,2]
[377993610,1754655031720,-150.0,0.000186,2]
[377993611,1754655031732,-537.83,0.000186,2]
[377993612,1754655031744,-537.83,0.000186,2]
[377993613,1754655031755,-348.5,0.00018617,2]
[377993614,1754655031766,-168.0,0.00018655,2]
[377993615,1754655031778,-5855.1177,0.00018662,2]
[377993616,1754655031790,-1000.0,0.00018662,2]
[377993617,1754655031801,-1000.0,0.00018662,2]
[377993618,1754655031813,-2500.0,0.00018662,2]
[377993619,1754655031825,-3076.6484,0.00018662,2]
[377993620,1754655031836,-150.0,0.00018733,2]
[377993621,1754655031847,-150.0,0.00018736,2]
[377993622,1754655031859,-150.0,0.00018738,2]
[377993623,1754655031870,-150.0,0.00018738,2]
[377993624,1754655031882,-1494.97966607,0.00018742,2]
[377993625,1754655031894,-267.46074303,0.00018742,2]
[377993626,1754655031905,-150.0,0.00018747,2]
[377993627,1754655031918,-160.0,0.00018751,2]
[377993628,1754655031929,-500.0,0.00018751,2]
[377993629,1754655031940,-611.17,0.00018752,2]
[377993630,1754655031952,-500.0,0.00018761,2]
[377993632,1754655031963,-500.0,0.00018761,2]
[377993634,1754655031974,-284.41101583,0.00018761,2]
[377993637,1754655031986,-608.54640015,0.00018761,2]
[377993640,1754655031997,-500.0,0.00018761,2]
[377993642,1754655032009,-972.1,0.00018761,2]
[377993644,1754655032020,-1221.57,0.00018761,2]
[377993647,1754655032031,-1122.45,0.00018761,2]
[377993649,1754655032046,-446.67,0.00018761,2]
[377993651,1754655032057,-777.99,0.00018761,2]
[377993653,1754655032069,-486.56,0.00018761,2]
[377993656,1754655032080,-512.85,0.00018761,2]
[377993658,1754655032091,-241.16740846,0.00018761,2]
[377993660,1754655032102,-237.10558234,0.00018761,2]
[377993662,1754655032114,-618.51,0.00018761,2]
[377993664,1754655032125,-955.37,0.00018761,2]
[377993666,1754655032136,-873.75,0.00018761,2]
[377993667,1754655032147,-500.0,0.00018761,2]
[377993668,1754655032159,-152.21352518,0.00018761,2]
[377993669,1754655032170,-636.1,0.00018761,2]
[377993670,1754655032181,-741.72,0.00018761,2]
[377993671,1754655032192,-982.65,0.00018761,2]
[377993672,1754655032203,-606.12,0.00018761,2]
[377993673,1754655032214,-645.74,0.00018761,2]
[377993674,1754655032225,-932.5,0.00018761,2]
[377993675,1754655032237,-975.93,0.00018761,2]
[377993676,1754655032248,-722.14,0.00018761,2]
[377993677,1754655032260,-972.61,0.00018761,2]
[377993678,1754655032271,-489.93,0.00018761,2]
[377993679,1754655032283,-956.98,0.00018761,2]
[377993680,1754655032296,-400.0,0.00018761,2]
[377993681,1754655032307,-400.0,0.00018761,2]
[377993682,1754655032319,-560.25,0.00018761,2]
[377993683,1754655032330,-400.0,0.00018761,2]
[377993684,1754655032342,-491.01,0.00018761,2]
[377993685,1754655032353,-885.8,0.00018761,2]
[377993686,1754655032365,-1602.67,0.00018761,2]
[377993687,1754655032376,-400.0,0.00018761,2]
[377993688,1754655032387,-415.69,0.00018761,2]
[377993689,1754655032399,-677.11,0.00018761,2]
[377993690,1754655032410,-400.0,0.00018761,2]
[377993691,1754655032422,-400.0,0.00018762,2]
[377993692,1754655032434,-400.0,0.00018762,2]
[377993693,1754655032446,-581.49,0.00018762,2]
[377993694,1754655032457,-735.95,0.00018762,2]
[377993695,1754655032469,-400.0,0.00018762,2]
[377993697,1754655032480,-400.0,0.00018762,2]
[377993699,1754655032491,-542.54,0.00018762,2]
[377993701,1754655032502,-400.0,0.00018762,2]
[377993704,1754655032514,-736.82,0.00018762,2]
[377993706,1754655032524,-464.23,0.00018762,2]
[377993708,1754655032537,-400.0,0.00018762,2]
[377993710,1754655032550,-400.0,0.00018762,2]
[377993712,1754655032563,-551.35,0.00018762,2]
[377993714,1754655032575,-400.0,0.00018762,2]
[377993717,1754655032586,-400.0,0.00018762,2]
[377993718,1754655032598,-400.0,0.00018762,2]
[377993719,1754655032609,-400.0,0.00018762,2]
[377993720,1754655032620,-558.81,0.00018762,2]
[377993721,1754655032633,-690.71,0.00018762,2]
[377993722,1754655032645,-400.0,0.00018762,2]
[377993723,1754655032657,-554.13,0.00018762,2]
[377993724,1754655032668,-453.94,0.00018762,2]
[377993725,1754655032678,-400.0,0.00018762,2]
[377993726,1754655032690,-400.0,0.00018762,2]
[377993727,1754655032701,-400.0,0.00018762,2]
[377993728,1754655032712,-400.0,0.00018762,2]
[377993729,1754655032723,-400.0,0.00018762,2]
[377993730,1754655032734,-400.0,0.00018762,2]
[377993731,1754655032745,-400.0,0.00018762,2]
[377993732,1754655032756,-683.83,0.00018762,2]
[377993733,1754655032767,-400.0,0.00018762,2]
[377993734,1754655032778,-400.0,0.00018762,2]
[377993735,1754655032790,-476.35,0.00018762,2]
[377993736,1754655032801,-612.31,0.00018762,2]
[377993737,1754655032812,-513.55,0.00018762,2]
[377993738,1754655032823,-400.0,0.00018762,2]
[377993739,1754655032834,-400.0,0.00018762,2]
[377993740,1754655032845,-400.0,0.00018762,2]
[377993741,1754655032855,-400.0,0.00018762,2]
[377993742,1754655032866,-237.15575945,0.00018762,2]
[377993743,1754655032877,-730.98,0.00018762,2]
[377993744,1754655032887,-400.0,0.00018762,2]
[377993745,1754655032898,-527.11,0.00018762,2]
[377993746,1754655032909,-400.0,0.00018762,2]
[377993747,1754655032920,-400.0,0.00018762,2]
[377993748,1754655032932,-400.0,0.00018762,2]
[377993749,1754655032943,-400.0,0.00018762,2]
[377993750,1754655032954,-400.0,0.00018762,2]
[377993751,1754655032965,-400.0,0.00018762,2]
[377993752,1754655032975,-400.0,0.00018762,2]
[377993753,1754655032987,-232.64089524,0.00018762,2]
[377993754,1754655032997,-400.0,0.00018762,2]
[377993755,1754655033008,-400.0,0.00018762,2]
[377993756,1754655033019,-400.0,0.00018762,2]
[377993757,1754655033031,-676.53,0.00018762,2]
[377993758,1754655033044,-542.93,0.00018762,2]
[377993759,1754655033055,-400.0,0.00018762,2]
[377993760,1754655033066,-400.0,0.00018762,2]
[377993761,1754655033077,-400.0,0.00018762,2]
[377993762,1754655033089,-400.0,0.00018762,2]
[377993763,1754655033099,-400.0,0.00018762,2]
[377993764,1754655033110,-400.0,0.00018762,2]
[377993765,1754655033121,-832.1,0.00018762,2]
[377993766,1754655033132,-400.0,0.00018762,2]
[377993767,1754655033144,-400.0,0.00018762,2]
[377993768,1754655033155,-400.0,0.00018762,2]
[377993769,1754655033166,-466.8,0.00018762,2]
[377993770,1754655033178,-514.77,0.00018762,2]
[377993771,1754655033188,-850.95,0.00018762,2]
[377993772,1754655033200,-586.83,0.00018762,2]
[377993773,1754655033212,-311.60202074,0.00018762,2]
[377993774,1754655033224,-400.0,0.00018762,2]
[377993775,1754655033235,-506.3,0.00018762,2]
[377993776,1754655033247,-400.0,0.00018762,2]
[377993777,1754655033258,-400.0,0.00018762,2]
[377993778,1754655033270,-400.0,0.00018762,2]
[377993779,1754655033282,-240.95215669,0.00018762,2]
[377993780,1754655033294,-400.0,0.00018762,2]
[377993781,1754655033305,-400.0,0.00018762,2]
[377993782,1754655033316,-400.0,0.00018762,2]
[377993783,1754655033328,-400.0,0.00018762,2]
[377993784,1754655033338,-423.25,0.00018762,2]
[377993785,1754655033348,-400.0,0.00018762,2]
[377993786,1754655033358,-400.0,0.00018762,2]
[377993787,1754655033367,-697.4,0.00018762,2]
[377993788,1754655033377,-507.24,0.00018762,2]
[377993789,1754655033386,-514.91,0.00018762,2]
[377993790,1754655033396,-400.0,0.00018762,2]
[377993791,1754655033405,-400.0,0.00018762,2]
[377993792,1754655033415,-545.84,0.00018762,2]
[377993793,1754655033424,-400.0,0.00018762,2]
[377993794,1754655033434,-555.92,0.00018762,2]
[377993795,1754655033444,-522.54,0.00018762,2]
[377993796,1754655033454,-612.09,0.00018762,2]
[377993797,1754655033464,-960.73,0.00018762,2]
[377993798,1754655033993,-400.0,0.00018762,2]
[377993799,1754655034023,-400.0,0.00018762,2]
[377993800,1754655034047,-400.0,0.00018762,2]
[377993801,1754655034057,-653.98,0.00018762,2]
[377993802,1754655034067,-400.0,0.00018762,2]
[377993803,1754655034076,-467.66,0.00018762,2]
[377993804,1754655034086,-400.0,0.00018762,2]
[377993805,1754655034095,-400.0,0.00018762,2]
[377993806,1754655034105,-457.45,0.00018762,2]
[377993807,1754655034114,-400.0,0.00018762,2]
[377993808,1754655034124,-769.38,0.00018762,2]
[377993809,1754655034133,-682.68,0.00018762,2]
[377993810,1754655034142,-400.0,0.00018762,2]
[377993811,1754655034151,-400.0,0.00018762,2]
[377993812,1754655034161,-446.36,0.00018762,2]
[377993813,1754655034170,-400.0,0.00018762,2]
[377993814,1754655034179,-400.0,0.00018762,2]
[377993815,1754655034188,-300.0,0.00018762,2]
[377993816,1754655034197,-1182.6,0.00018762,2]
[377993817,1754655034207,-400.0,0.00018762,2]
[377993818,1754655034216,-407.82,0.00018762,2]
[377993819,1754655034226,-400.0,0.00018762,2]
[377993820,1754655034236,-592.43,0.00018762,2]
[377993821,1754655034246,-656.29,0.00018762,2]
[377993822,1754655034256,-587.92,0.00018762,2]
[377993823,1754655034266,-400.0,0.00018762,2]
[377993824,1754655034275,-417.79,0.00018762,2]
[377993825,1754655034287,-811.08,0.00018762,2]
[377993826,1754655034298,-400.0,0.00018762,2]
[377993827,1754655034308,-400.0,0.00018762,2]
[377993828,1754655034318,-400.0,0.00018762,2]
[377993829,1754655034328,-400.0,0.00018762,2]
[377993830,1754655034338,-679.91,0.00018762,2]
[377993831,1754655034348,-517.0,0.00018762,2]
[377993832,1754655034358,-486.87,0.00018762,2]
[377993833,1754655034368,-400.0,0.00018762,2]
[377993834,1754655034379,-400.0,0.00018762,2]
[377993835,1754655034388,-414.14,0.00018762,2]
[377993836,1754655034398,-697.46,0.00018762,2]
[377993837,1754655034408,-400.0,0.00018762,2]
[377993838,1754655034418,-400.0,0.00018762,2]
[377993839,1754655034427,-400.0,0.00018762,2]
[377993840,1754655034438,-400.0,0.00018762,2]
[377993841,1754655034447,-415.89,0.00018762,2]
[377993842,1754655034457,-667.39,0.00018762,2]
[377993843,1754655034467,-475.04,0.00018762,2]
[377993844,1754655034477,-593.45,0.00018762,2]
[377993845,1754655034487,-412.03,0.00018762,2]
[377993846,1754655034496,-884.5,0.00018762,2]
[377993847,1754655034506,-884.11,0.00018762,2]
[377993848,1754655034516,-400.0,0.00018762,2]
[377993849,1754655034527,-497.06,0.00018762,2]
[377993850,1754655034538,-644.8,0.00018762,2]
[377993851,1754655034549,-400.0,0.00018762,2]
[377993852,1754655034561,-584.05,0.00018762,2]
[377993853,1754655034571,-655.5,0.00018762,2]
[377993854,1754655034580,-664.26,0.00018762,2]
[377993855,1754655034591,-528.03,0.00018762,2]
[377993856,1754655034601,-1005.16,0.00018762,2]
[377993857,1754655034610,-1020.68,0.00018762,2]
[377993858,1754655034619,-764.66,0.00018762,2]
[377993859,1754655034630,-400.0,0.00018762,2]
[377993860,1754655034639,-400.0,0.00018762,2]
[377993861,1754655034648,-400.0,0.00018762,2]
[377993862,1754655034658,-1179.99,0.00018762,2]
[377993863,1754655034667,-400.0,0.00018762,2]
[377993864,1754655034677,-573.98,0.00018762,2]
[377993865,1754655034686,-400.0,0.00018762,2]
[377993866,1754655034695,-400.0,0.00018762,2]
[377993867,1754655034704,-400.0,0.00018762,2]
[377993868,1754655034714,-454.58,0.00018762,2]
[377993869,1754655034724,-400.0,0.00018762,2]
[377993870,1754655034733,-400.0,0.00018762,2]
[377993871,1754655034743,-721.8,0.00018762,2]
[377993872,1754655034753,-400.0,0.00018762,2]
[377993873,1754655034762,-400.0,0.00018762,2]
[377993874,1754655034771,-590.96,0.00018762,2]
[377993875,1754655034780,-400.0,0.00018762,2]
[377993876,1754655034790,-400.0,0.00018762,2]
[377993877,1754655034800,-406.29,0.00018762,2]
[377993878,1754655034810,-641.43,0.00018762,2]
[377993879,1754655034819,-805.13,0.00018762,2]
[377993880,1754655034828,-400.0,0.00018762,2]
[377993881,1754655034838,-400.0,0.00018762,2]
[377993882,1754655034847,-511.81,0.00018762,2]
[377993883,1754655034857,-400.0,0.00018762,2]
[377993884,1754655034867,-559.49,0.00018762,2]
[377993885,1754655034876,-684.06,0.00018762,2]
[377993886,1754655034885,-770.18,0.00018762,2]
[377993887,1754655034895,-688.67,0.00018762,2]
[377993888,1754655034905,-736.22,0.00018762,2]
[377993889,1754655034914,-760.34,0.00018762,2]
[377993890,1754655034924,-400.0,0.00018762,2]
[377993891,1754655034933,-699.96,0.00018762,2]
[377993892,1754655034943,-400.0,0.00018762,2]
[377993893,1754655034952,-547.82,0.00018762,2]
[377993894,1754655034962,-413.24,0.00018762,2]
[377993895,1754655034972,-573.88,0.00018762,2]
[377993896,1754655034982,-400.0,0.00018762,2]
[377993897,1754655034992,-400.0,0.00018762,2]
[377993898,1754655035002,-400.0,0.00018762,2]
[377993899,1754655035013,-282.00392,0.00018762,2]
[377993900,1754655035023,-400.0,0.00018762,2]
[377993901,1754655035034,-619.68,0.00018762,2]
[377993902,1754655035044,-507.69,0.00018762,2]
[377993903,1754655035053,-400.0,0.00018762,2]
[377993904,1754655035063,-400.0,0.00018762,2]
[377993905,1754655035072,-408.18,0.00018762,2]
[377993906,1754655035081,-580.43,0.00018762,2]
[377993907,1754655035090,-458.63,0.00018762,2]
[377993908,1754655035100,-503.24,0.00018762,2]
[377993909,1754655035109,-819.28,0.00018762,2]
[377993910,1754655035118,-1287.92,0.00018762,2]
[377993911,1754655035128,-400.0,0.00018762,2]
[377993912,1754655035137,-325.539799,0.00018762,2]
[377993913,1754655035147,-542.65,0.00018762,2]
[377993914,1754655035156,-473.21,0.00018762,2]
[377993915,1754655035165,-400.0,0.00018762,2]
[377993916,1754655035175,-400.0,0.00018762,2]
[377993917,1754655035184,-400.0,0.00018762,2]
[377993918,1754655035193,-400.0,0.00018762,2]
[377993919,1754655035202,-646.12,0.00018762,2]
[377993920,1754655035213,-400.0,0.00018762,2]
[377993921,1754655035223,-400.0,0.00018762,2]
[377993922,1754655035232,-401.99,0.00018762,2]
[377993923,1754655035241,-197.57579296,0.00018762,2]
[377993924,1754655035251,-979.57,0.00018762,2]
[377993925,1754655035260,-400.0,0.00018762,2]
[377993926,1754655035269,-633.26,0.00018762,2]
[377993927,1754655035278,-3545.12,0.00018762,2]
[377993928,1754655035287,-400.0,0.00018762,2]
[377993929,1754655035297,-670.08,0.00018762,2]
[377993930,1754655035306,-550.89,0.00018762,2]
[377993931,1754655035315,-450.7,0.00018762,2]
[377993932,1754655035324,-256.12939629,0.00018762,2]
[377993933,1754655035334,-663.04,0.00018762,2]
[377993934,1754655035343,-248.579568,0.00018762,2]
[377993935,1754655035352,-400.0,0.00018762,2]
[377993936,1754655035362,-679.03,0.00018762,2]
[377993937,1754655035371,-400.0,0.00018762,2]
[377993938,1754655035381,-1558.43,0.00018762,2]
[377993939,1754655035391,-400.0,0.00018762,2]
[377993940,1754655035400,-547.41,0.00018762,2]
[377993941,1754655035410,-400.0,0.00018762,2]
[377993942,1754655035420,-400.0,0.00018762,2]
[377993943,1754655035434,-400.0,0.00018762,2]
[377993944,1754655035444,-400.0,0.00018762,2]
[377993945,1754655035453,-400.0,0.00018762,2]
[377993946,1754655035463,-400.0,0.00018762,2]
[377993947,1754655035472,-400.0,0.00018762,2]
[377993948,1754655035482,-794.26,0.00018762,2]
[377993949,1754655035492,-400.0,0.00018762,2]
[377993950,1754655035501,-958.91,0.00018762,2]
[377993951,1754655035511,-400.0,0.00018762,2]
[377993952,1754655035520,-400.0,0.00018762,2]
[377993953,1754655035532,-400.0,0.00018762,2]
[377993954,1754655035545,-417.85,0.00018762,2]
[377993955,1754655035558,-410.29,0.00018762,2]
[377993956,1754655035568,-400.0,0.00018762,2]
[377993957,1754655035578,-400.0,0.00018762,2]
[377993958,1754655035588,-400.0,0.00018762,2]
[377993959,1754655035597,-400.0,0.00018762,2]
[377993960,1754655035607,-400.0,0.00018762,2]
[377993961,1754655035616,-915.66,0.00018762,2]
[377993962,1754655035626,-1332.4,0.00018762,2]
[377993963,1754655035639,-400.0,0.00018762,2]
[377993964,1754655035649,-400.0,0.00018762,2]
[377993965,1754655035659,-717.88,0.00018762,2]
[377993966,1754655035668,-400.0,0.00018762,2]
[377993967,1754655035678,-400.0,0.00018762,2]
[377993968,1754655035688,-1046.71,0.00018762,2]
[377993969,1754655035697,-535.45,0.00018762,2]
[377993970,1754655035707,-516.03,0.00018762,2]
[377993971,1754655035717,-400.0,0.00018762,2]
[377993972,1754655035727,-510.82,0.00018762,2]
[377993973,1754655035736,-591.24,0.00018762,2]
[377993974,1754655035746,-778.03,0.00018762,2]
[377993975,1754655035755,-434.72,0.00018762,2]
[377993976,1754655035765,-400.0,0.00018762,2]
[377993977,1754655035775,-873.06,0.00018762,2]
[377993978,1754655035784,-400.0,0.00018762,2]
[377993979,1754655035799,-467.15,0.00018762,2]
[377993980,1754655035809,-400.0,0.00018762,2]
[377993981,1754655035819,-1004.5,0.00018762,2]
[377993982,1754655035828,-400.0,0.00018762,2]
[377993983,1754655035838,-400.0,0.00018762,2]
[377993984,1754655035848,-400.0,0.00018762,2]
[377993985,1754655035858,-400.0,0.00018762,2]
[377993986,1754655035867,-400.0,0.00018762,2]
[377993987,1754655035877,-400.0,0.00018762,2]
[377993988,1754655035887,-400.0,0.00018762,2]
[377993989,1754655035896,-133.36905705,0.00018762,2]
[377993990,1754655035921,-266.63094295,0.00018762,2]
[377993991,1754655035931,-525.73,0.00018762,2]
[377993992,1754655035941,-514.56,0.00018762,2]
[377993993,1754655035950,-679.15,0.00018762,2]
[377993994,1754655035959,-684.31,0.00018762,2]
[377993995,1754655035968,-400.0,0.00018762,2]
[377993996,1754655035978,-1031.06,0.00018762,2]
[377993997,1754655035987,-1076.98,0.00018762,2]
[377993998,1754655035997,-622.65,0.00018762,2]
[377993999,1754655036006,-410.45,0.00018762,2]
[377994000,1754655036016,-400.0,0.00018762,2]
[377994001,1754655036025,-451.83,0.00018762,2]
[377994002,1754655036034,-417.3,0.00018762,2]
[377994003,1754655036047,-661.38,0.00018762,2]
[377994004,1754655036056,-400.0,0.00018762,2]
[377994005,1754655036066,-400.0,0.00018762,2]
[377994006,1754655036075,-400.0,0.00018762,2]
[377994007,1754655036084,-528.43,0.00018762,2]
[377994008,1754655036094,-509.35,0.00018762,2]
[377994009,1754655036103,-400.0,0.00018762,2]
[377994010,1754655036112,-818.03,0.00018762,2]
[377994011,1754655036122,-515.7,0.00018762,2]
[377994012,1754655036132,-400.0,0.00018762,2]
[377994013,1754655036142,-614.41,0.00018762,2]
[377994014,1754655036151,-1131.13,0.00018762,2]
[377994015,1754655036161,-400.0,0.00018762,2]
[377994016,1754655036171,-400.0,0.00018762,2]
[377994017,1754655036180,-720.53,0.00018762,2]
[377994018,1754655036190,-678.55,0.00018762,2]
[377994019,1754655036200,-406.87,0.00018762,2]
[377994020,1754655036209,-603.3,0.00018762,2]
[377994021,1754655036219,-400.0,0.00018762,2]
[377994022,1754655036228,-649.45,0.00018762,2]
[377994023,1754655036239,-400.0,0.00018762,2]
[377994024,1754655036250,-400.0,0.00018762,2]
[377994025,1754655036261,-400.0,0.00018762,2]
[377994026,1754655036271,-1595.06,0.00018762,2]
[377994027,1754655036281,-485.51,0.00018762,2]
[377994028,1754655036292,-400.0,0.00018762,2]
[377994029,1754655036303,-917.06,0.00018762,2]
[377994030,1754655036313,-607.77,0.00018762,2]
[377994031,1754655036323,-808.9,0.00018762,2]
[377994032,1754655036333,-470.3,0.00018762,2]
[377994033,1754655036344,-535.01,0.00018762,2]
[377994034,1754655036354,-400.0,0.00018762,2]
[377994035,1754655036365,-424.81,0.00018762,2]
[377994036,1754655036374,-400.0,0.00018762,2]
[377994037,1754655036384,-942.35,0.00018762,2]
[377994038,1754655036394,-530.25,0.00018762,2]
[377994039,1754655036404,-473.4,0.00018762,2]